fUSD/lending_fUSD_20250503
["ID","MTS","AMOUNT","RATE_DAILY","PERIOD"]
[359677982,1746244247990,-457.5,0.00019855,2]
[359677983,1746244247999,-647.64,0.00019855,2]
[359677984,1746244248010,-450.0,0.00019855,2]
[359677985,1746244248019,-4710.05,0.00019855,2]
[359677986,1746244248029,-468.06,0.00019855,2]
[359677987,1746244248039,-450.0,0.00019855,2]
[359677988,1746244248048,-477.38,0.00019855,2]
[359677989,1746244248058,-450.0,0.00019855,2]
[359677990,1746244248069,-500.0,0.00019856,2]
[359677991,1746244248079,-228.28560537,0.00019856,2]
[359677992,1746244248088,-450.0,0.00019856,2]
[359677993,1746244248098,-503.91,0.00019856,2]
[359677994,1746244248108,-450.0,0.00019856,2]
[359677995,1746244248117,-450.0,0.00019856,2]
[359677996,1746244248127,-450.0,0.00019856,2]
[359677997,1746244248138,-450.0,0.00019856,2]
[359677998,1746244248147,-450.0,0.00019856,2]
[359677999,1746244248156,-612.19,0.00019856,2]
[359678000,1746244248166,-450.0,0.00019856,2]
[359678001,1746244248176,-450.0,0.00019856,2]
[359678002,1746244248185,-450.0,0.00019856,2]
[359678003,1746244248195,-450.0,0.00019856,2]
[359678004,1746244248205,-450.0,0.00019856,2]
[359678005,1746244248214,-450.0,0.00019856,2]
[359678006,1746244248224,-450.0,0.00019856,2]
[359678007,1746244248234,-450.0,0.00019856,2]
[359678008,1746244248244,-450.0,0.00019856,2]
[359678009,1746244248253,-450.0,0.00019856,2]
[359678010,1746244248263,-450.0,0.00019856,2]
[359678011,1746244248273,-450.0,0.00019856,2]
[359678012,1746244248282,-450.0,0.00019856,2]
[359678013,1746244248291,-498.21,0.00019856,2]
[359678014,1746244248301,-450.0,0.00019856,2]
[359678015,1746244248311,-450.0,0.00019856,2]
[359678016,1746244248320,-450.0,0.00019856,2]
[359678017,1746244248330,-450.0,0.00019856,2]
[359678018,1746244248339,-450.0,0.00019856,2]
[359678019,1746244248349,-450.0,0.00019856,2]
[359678020,1746244248358,-450.0,0.00019856,2]
[359678021,1746244248368,-450.0,0.00019856,2]
[359678022,1746244248377,-450.0,0.00019856,2]
[359678023,1746244248387,-471.32532163,0.00019856,2]
[359678024,1746244248396,-450.0,0.00019856,2]
[359678025,1746244248406,-560.08,0.00019856,2]
[359678026,1746244248415,-450.0,0.00019856,2]
[359678027,1746244248424,-450.0,0.00019856,2]
[359678028,1746244248434,-568.95,0.00019856,2]
[359678029,1746244248443,-450.0,0.00019856,2]
[359678030,1746244248452,-450.0,0.00019856,2]
[359678031,1746244248462,-450.0,0.00019856,2]
[359678032,1746244248472,-466.66,0.00019856,2]
[359678033,1746244248482,-450.0,0.00019856,2]
[359678034,1746244248491,-591.93,0.00019856,2]
[359678035,1746244248501,-450.0,0.00019856,2]
[359678036,1746244248510,-450.0,0.00019856,2]
[359678037,1746244248519,-450.0,0.00019856,2]
[359678038,1746244248529,-450.0,0.00019856,2]
[359678039,1746244248538,-545.5843728,0.00019856,2]
[359678040,1746244248548,-450.0,0.00019856,2]
[359678041,1746244248557,-450.0,0.00019856,2]
[359678042,1746244248567,-450.0,0.00019856,2]
[359678043,1746244248577,-450.0,0.00019856,2]
[359678044,1746244248587,-450.0,0.00019856,2]
[359678045,1746244248597,-205.70456391,0.00019856,2]
[359678046,1746244248606,-450.0,0.00019856,2]
[359678047,1746244248616,-450.0,0.00019856,2]
[359678048,1746244248626,-450.0,0.00019856,2]
[359678049,1746244248636,-450.0,0.00019856,2]
[359678050,1746244248646,-1075.83,0.00019856,2]
[359678051,1746244248656,-548.9,0.00019856,2]
[359678052,1746244248666,-450.0,0.00019856,2]
[359678053,1746244248676,-566.64,0.00019856,2]
[359678054,1746244248685,-450.0,0.00019856,2]
[359678055,1746244248695,-450.0,0.00019856,2]
[359678056,1746244248709,-462.88,0.00019856,2]
[359678057,1746244248719,-450.0,0.00019856,2]
[359678058,1746244248728,-450.0,0.00019856,2]
[359678059,1746244248739,-477.03160307,0.00019856,2]
[359678060,1746244248750,-450.0,0.00019856,2]
[359678061,1746244248759,-450.0,0.00019856,2]
[359678062,1746244248769,-575.34,0.00019856,2]
[359678063,1746244248779,-450.0,0.00019856,2]
[359678064,1746244248789,-450.0,0.00019856,2]
[359678065,1746244248798,-1437.18,0.00019856,2]
[359678066,1746244248807,-1000.99,0.00019856,2]
[359678067,1746244248817,-300.0,0.00019856,2]
[359678068,1746244248827,-545.69,0.00019856,2]
[359678069,1746244248836,-486.43,0.00019856,2]
[359678070,1746244248846,-450.0,0.00019856,2]
[359678071,1746244248855,-450.0,0.00019856,2]
[359678072,1746244248865,-450.0,0.00019856,2]
[359678073,1746244248876,-712.59,0.00019856,2]
[359678074,1746244248887,-450.0,0.00019856,2]
[359678075,1746244248896,-604.02,0.00019856,2]
[359678076,1746244248905,-450.0,0.00019856,2]
[359678077,1746244248915,-464.14593802,0.00019856,2]
[359678078,1746244248924,-450.0,0.00019856,2]
[359678079,1746244248933,-503.9,0.00019856,2]
[359678080,1746244248943,-450.0,0.00019856,2]
[359678081,1746244248952,-450.0,0.00019856,2]
[359678082,1746244248962,-699.18,0.00019856,2]
[359678083,1746244248971,-450.0,0.00019856,2]
[359678084,1746244248980,-551.57,0.00019856,2]
[359678085,1746244248993,-460.4631633,0.00019856,2]
[359678086,1746244249006,-473.26684363,0.00019856,2]
[359678087,1746244249022,-794.37,0.00019856,2]
[359678088,1746244249035,-450.0,0.00019856,2]
[359678089,1746244249048,-450.0,0.00019856,2]
[359678090,1746244249059,-450.0,0.00019856,2]
[359678091,1746244249071,-499.31,0.00019856,2]
[359678092,1746244249084,-752.0,0.00019856,2]
[359678093,1746244249096,-454.53686391,0.00019856,2]
[359678094,1746244249107,-450.0,0.00019856,2]
[359678095,1746244249119,-742.65,0.00019856,2]
[359678096,1746244249132,-450.0,0.00019856,2]
[359678097,1746244249144,-450.0,0.00019856,2]
[359678100,1746244249157,-450.0,0.00019856,2]
[359678102,1746244249169,-450.0,0.00019856,2]
[359678104,1746244249181,-472.15560293,0.00019856,2]
[359678106,1746244249193,-663.64,0.00019856,2]
[359678108,1746244249203,-450.0,0.00019856,2]
[359678111,1746244249214,-1720.83,0.00019856,2]
[359678113,1746244249227,-450.0,0.00019856,2]
[359678115,1746244249239,-486.75,0.00019856,2]
[359678118,1746244249251,-2649.35,0.00019856,2]
[359678120,1746244249263,-450.0,0.00019856,2]
[359678122,1746244249276,-585.16,0.00019856,2]
[359678125,1746244249288,-450.0,0.00019856,2]
[359678127,1746244249301,-450.0,0.00019856,2]
[359678129,1746244249313,-450.0,0.00019856,2]
[359678132,1746244249326,-1168.72,0.00019856,2]
[359678134,1746244249338,-450.0,0.00019856,2]
[359678135,1746244249349,-450.0,0.00019856,2]
[359678136,1746244249362,-455.94,0.00019856,2]
[359678137,1746244249374,-450.0,0.00019856,2]
[359678138,1746244249386,-450.0,0.00019856,2]
[359678139,1746244249399,-450.0,0.00019856,2]
[359678140,1746244249412,-1040.89,0.00019856,2]
[359678141,1746244249422,-755.25,0.00019856,2]
[359678142,1746244249434,-450.0,0.00019856,2]
[359678143,1746244249446,-450.0,0.00019856,2]
[359678144,1746244249458,-450.96282215,0.00019856,2]
[359678145,1746244249471,-450.0,0.00019856,2]
[359678146,1746244249483,-1081.24,0.00019856,2]
[359678147,1746244249494,-450.0,0.00019856,2]
[359678148,1746244249506,-450.0,0.00019856,2]
[359678149,1746244249517,-365.0454029,0.00019856,2]
[359678150,1746244249527,-450.0,0.00019856,2]
[359678151,1746244249538,-450.0,0.00019856,2]
[359678152,1746244249548,-450.0,0.00019856,2]
[359678153,1746244249561,-516.14,0.00019856,2]
[359678154,1746244249575,-450.0,0.00019856,2]
[359678155,1746244249587,-993.17,0.00019856,2]
[359678156,1746244249597,-450.0,0.00019856,2]
[359678157,1746244249607,-450.0,0.00019856,2]
[359678158,1746244249617,-450.0,0.00019856,2]
[359678159,1746244249628,-1432.92,0.00019856,2]
[359678160,1746244249640,-632.47,0.00019856,2]
[359678161,1746244249652,-497.75,0.00019856,2]
[359678162,1746244249665,-604.28,0.00019856,2]
[359678163,1746244249676,-1648.11,0.00019856,2]
[359678164,1746244249688,-680.06,0.00019856,2]
[359678165,1746244249698,-450.0,0.00019856,2]
[359678166,1746244249709,-463.62,0.00019856,2]
[359678167,1746244249720,-977.42,0.00019856,2]
[359678168,1746244249732,-450.0,0.00019856,2]
[359678169,1746244249744,-818.31,0.00019856,2]
[359678170,1746244249754,-450.0,0.00019856,2]
[359678171,1746244249765,-450.0,0.00019856,2]
[359678172,1746244249776,-450.0,0.00019856,2]
[359678173,1746244249786,-450.0,0.00019856,2]
[359678174,1746244249799,-546.87753967,0.00019856,2]
[359678175,1746244249811,-745.52,0.00019856,2]
[359678176,1746244249823,-450.0,0.00019856,2]
[359678177,1746244249835,-450.0,0.00019856,2]
[359678178,1746244249846,-2480.99,0.00019856,2]
[359678179,1746244249857,-712.48,0.00019856,2]
[359678180,1746244249868,-1087.32,0.00019856,2]
[359678181,1746244249883,-588.96,0.00019856,2]
[359678182,1746244249894,-2238.11,0.00019856,2]
[359678183,1746244249905,-12500.0,0.00019856,2]
[359678184,1746244249915,-150.0,0.00019858,2]
[359678185,1746244249926,-150.0,0.00019862,2]
[359678186,1746244249937,-150.0,0.00019863,2]
[359678187,1746244249948,-12500.0,0.00019865,2]
[359678188,1746244249959,-150.0,0.0001987,2]
[359678189,1746244249970,-402.99682489,0.00019873,2]
[359678190,1746244249981,-500.0,0.00019873,2]
[359678191,1746244249992,-500.0,0.00019873,2]
[359678192,1746244250003,-500.0,0.00019873,2]
[359678193,1746244250013,-513.96299407,0.00019873,2]
[359678194,1746244250025,-500.0,0.00019873,2]
[359678195,1746244250035,-500.68219032,0.00019873,2]
[359678196,1746244250046,-500.0,0.00019873,2]
[359678197,1746244250057,-500.0,0.00019873,2]
[359678198,1746244250071,-500.0,0.00019873,2]
[359678199,1746244250082,-12500.0,0.00019874,2]
[359678200,1746244250093,-150.0,0.00019875,2]
[359678201,1746244250104,-306.13106118,0.00019876,2]
[359678202,1746244250115,-4093.995,0.00019882,2]
[359678203,1746244250126,-323.067,0.00019882,2]
[359678204,1746244250137,-12500.0,0.00019882,2]
[359678205,1746244250147,-1000.0,0.0001989,2]
[359678206,1746244250158,-1000.0,0.0001989,2]
[359678207,1746244250169,-1000.0,0.0001989,2]
[359678208,1746244250180,-1000.0,0.0001989,2]
[359678209,1746244250192,-1000.0,0.0001989,2]
[359678210,1746244250202,-1026.39740553,0.0001989,2]
[359678211,1746244250214,-1000.0,0.00019891,2]
[359678212,1746244250226,-12500.0,0.00019891,2]
[359678213,1746244250236,-150.0,0.00019895,2]
[359678214,1746244250247,-636.79516556,0.000199,2]
[359678215,1746244250258,-12266.6117,0.000199,2]
[359678216,1746244250268,-12500.0,0.000199,2]
[359678217,1746244250278,-2780.94450003,0.000199,2]
[359678218,1746244250289,-166.2109942,0.000199,2]
[359678219,1746244250299,-306.13106118,0.000199,2]
[359678220,1746244250310,-5152.27893101,0.000199,2]
[359678221,1746244250321,-4486.80679462,0.000199,2]
[359678222,1746244250332,-1393.50274132,0.000199,2]
[359678223,1746244250344,-165.34908229,0.000199,2]
[359678224,1746244250355,-1021.0,0.000199,2]
[359678225,1746244250366,-16554.37795892,0.000199,2]
[359678226,1746244250377,-2135.0,0.000199,2]
[359678227,1746244250387,-151.46858835,0.00019904,2]
[359678228,1746244250399,-500.0,0.00019918,2]
[359678229,1746244250410,-150.0,0.00019924,2]
[359678230,1746244250421,-150.0,0.00019933,2]
[359678231,1746244250433,-150.0,0.00019935,2]
[359678232,1746244250444,-598.70679333,0.00019944,2]
[359678233,1746244250454,-150.0,0.00019948,2]
[359678234,1746244250465,-150.0,0.0001995,2]
[359678235,1746244250476,-150.0,0.00019958,2]
[359678236,1746244250486,-165.34908227,0.00019964,2]
[359678237,1746244250498,-16554.37795892,0.00019964,2]
[359678238,1746244250508,-152.88244308,0.00019967,2]
[359678239,1746244250519,-24428.0,0.00019973,2]
[359678240,1746244250529,-500.0,0.00019973,2]
[359678241,1746244250541,-503.14930803,0.00019973,2]
[359678242,1746244250552,-500.0,0.00019973,2]
[359678243,1746244250563,-506.33875235,0.00019973,2]
[359678244,1746244250577,-500.0,0.00019973,2]
[359678245,1746244250588,-532.23391832,0.00019973,2]
[359678246,1746244250600,-501.88937331,0.00019973,2]
[359678247,1746244250611,-162.45076163,0.00019973,2]
[359678248,1746244250622,-501.15741321,0.00019973,2]
[359678249,1746244250633,-500.0,0.00019973,2]
[359678250,1746244250644,-501.21994559,0.00019973,2]
[359678251,1746244250655,-500.0,0.00019973,2]
[359678252,1746244250667,-959.0,0.00019973,2]
[359678253,1746244250678,-160.20238278,0.00019973,2]
[359678254,1746244250689,-500.0,0.00019973,2]
[359678255,1746244250700,-160.45164529,0.00019973,2]
[359678256,1746244250711,-539.24803438,0.00019973,2]
[359678257,1746244250722,-500.0,0.00019973,2]
[359678258,1746244250734,-500.0,0.00019973,2]
[359678259,1746244250744,-303.17184781,0.00019973,2]
[359678260,1746244250755,-502.58925245,0.00019973,2]
[359678261,1746244250767,-500.0,0.00019973,2]
[359678262,1746244250777,-500.0,0.00019973,2]
[359678263,1746244250788,-500.0,0.00019973,2]
[359678264,1746244250799,-500.0,0.00019973,2]
[359678265,1746244250810,-150.0,0.00019981,2]
[359678266,1746244250821,-1000.0,0.00019984,2]
[359678267,1746244250832,-7013.6535259,0.00019986,2]
[359678268,1746244250843,-266448.7322138,0.00019986,2]
[359678269,1746244250853,-13945.2930077,0.00019986,2]
[359678270,1746244250864,-1272.529559,0.00019986,2]
[359678271,1746244250878,-2014.4284522,0.00019986,2]
[359678272,1746244250889,-1077.03046632,0.0001999,2]
[359678273,1746244250900,-1077.03046632,0.0001999,2]
[359678274,1746244250910,-150.0,0.00019991,2]
[359678275,1746244250921,-1000.0,0.00019994,2]
[359678276,1746244250931,-500.0,0.00019999,2]
[359678277,1746244250942,-679.71892541,0.00019999,2]
[359678278,1746244250952,-500.0,0.00019999,2]
[359678279,1746244250963,-500.0,0.00019999,2]
[359678280,1746244250974,-300.0,0.00019999,2]
[359678281,1746244250984,-300.0,0.00019999,2]
[359678282,1746244250995,-3975.69203346,0.00019999,2]
[359678283,1746244251006,-267.56632987,0.0002,2]
[359678284,1746244251018,-606115.05961028,0.0002,2]
[359678285,1746244251029,-3344171.23776282,0.0002,2]
[359678286,1746244252223,-270.42016562,0.00019581,2]
[359678287,1746244252232,-39.04811722,0.00019771,2]
[359678288,1746244275191,404.59,0.00017142,2]
[359678289,1746244275404,404.59,0.00019406,2]
[359678290,1746244278064,36150.0,0.00019463,7]
[359678291,1746244283250,5052.7145,0.00019481,2]
[359678292,1746244328398,1000.0,0.00019481,2]
[359678293,1746244355167,23515.2183,0.00019481,2]
[359678294,1746244361378,4531.1295,0.00019481,2]
[359678295,1746244373294,2861.5535,0.00019481,2]
[359678296,1746244383058,6277.56168794,0.00019481,2]
[359678297,1746244410351,299.99,0.00019671,7]
[359678298,1746244422695,200.0,0.00018825,2]
[359678299,1746244455436,1800.0,0.00019481,2]
[359678300,1746244455458,322.3089,0.00019481,2]
[359678301,1746244516608,1000.0,0.00019481,2]
[359678302,1746244551983,250.0,0.00018796,7]
[359678303,1746244648542,273.3,0.00018796,2]
[359678304,1746244708164,404.3911,0.00019481,2]
[359678305,1746244708191,11862.2206,0.00019481,2]
[359678306,1746244708936,291.25370618,0.00019481,2]
[359678307,1746244708963,146.4018276,0.00019481,2]
[359678308,1746244729593,23900.0,0.00018783,2]
[359678314,1746244782552,540.23,0.00019178,2]
[359678315,1746244827515,250.0,0.00018774,2]
[359678319,1746244898449,5665.51175216,0.0001948,2]
[359678320,1746244908080,224.91,0.00018783,2]
[359678321,1746244924815,243.58,0.00018723,2]
[359678322,1746244977835,1155.16,0.00019578,5]
[359678323,1746244990834,238.85622132,0.000195,2]
[359678324,1746244995736,299.99,0.00019578,7]
[359678325,1746245095323,393.88998033,0.0001948,2]
[359678326,1746245099005,250.0,0.00017,2]
[359678327,1746245100113,300.0,0.00019,2]
[359678328,1746245138677,-300.0,0.00019526,2]
[359678329,1746245138701,-5665.51175208,0.00019527,2]
[359678330,1746245138724,-393.88998033,0.00019527,2]
[359678331,1746245138746,-151.0,0.00019528,2]
[359678332,1746245138769,-200.0,0.00019538,2]
[359678333,1746245138792,-200.0,0.00019558,2]
[359678334,1746245138815,-1200.0,0.00019567,2]
[359678335,1746245138837,-151.0,0.00019568,2]
[359678336,1746245138859,-151.0,0.00019568,2]
[359678337,1746245138881,-668.65185757,0.00019568,2]
[359678338,1746245138904,-207.4,0.00019568,2]
[359678339,1746245138929,-5665.51175208,0.00019573,2]
[359678340,1746245138952,-393.88998033,0.00019573,2]
[359678341,1746245138981,-531.05476208,0.00019577,2]
[359678342,1746245139003,-19261.99,0.00019578,2]
[359678343,1746245139025,-4859.09991553,0.00019578,2]
[359678657,1746245159286,459.079733,0.0001948,2]
[359678658,1746245277058,1000.0,0.00018779,2]
[359678659,1746245316067,1977.50057862,0.00032877,60]
[359678660,1746245322941,364.13,0.00016861,2]
[359678661,1746245323395,364.13,0.00019125,2]
[359678664,1746245403963,6657.9423033,0.00019479,2]
[359678667,1746245431357,-299.51692814,0.00019526,2]
[359678668,1746245431627,-1930.26834,0.00019526,2]
[359678669,1746245431638,-4428.15703508,0.00019526,2]
[359678670,1746245431647,-300.0,0.00019567,2]
[359678671,1746245431656,-41.88434881,0.00019568,2]
[359678672,1746245432324,-30.53950492,0.00019568,2]
[359678688,1746245439926,-78.57614627,0.00019568,2]
[359678689,1746245439936,-151.0,0.00019568,2]
[359678690,1746245439945,-668.65185757,0.00019568,2]
[359678691,1746245439955,-207.4,0.00019568,2]
[359678692,1746245439964,-6657.94230322,0.00019573,2]
[359678693,1746245439972,-1200.0,0.00019576,2]
[359678694,1746245439981,-262.01599656,0.00019577,2]
[359678695,1746245439990,-538.0,0.00019577,2]
[359678696,1746245439999,-300.0,0.00019577,2]
[359678697,1746245440009,-151.0,0.00019578,2]
[359678698,1746245440019,-5140.89008447,0.00019578,2]
[359678699,1746245440028,-999.99,0.00019578,2]
[359678700,1746245440038,-9999.99,0.00019578,2]
[359678701,1746245440048,-648.71,0.00019578,2]
[359678702,1746245440058,-1219.12,0.00019578,2]
[359678703,1746245440067,-150.99,0.00019578,2]
[359678704,1746245440077,-9999.99,0.00019578,2]
[359678705,1746245440086,-150.99,0.00019578,2]
[359678706,1746245440095,-450.0,0.00019578,2]
[359678707,1746245440105,-450.0,0.00019578,2]
[359678708,1746245440114,-450.0,0.00019578,2]
[359678709,1746245440123,-450.0,0.00019578,2]
[359678710,1746245440133,-450.0,0.00019578,2]
[359678711,1746245440142,-536.08767055,0.00019578,2]
[359678712,1746245440151,-450.0,0.00019578,2]
[359678713,1746245440160,-450.0,0.00019578,2]
[359678714,1746245440169,-450.0,0.00019578,2]
[359678715,1746245440179,-450.0,0.00019578,2]
[359678716,1746245440191,-450.0,0.00019578,2]
[359678717,1746245440200,-4356.18,0.00019578,2]
[359678718,1746245440209,-450.0,0.00019578,2]
[359678719,1746245440219,-476.17,0.00019578,2]
[359678720,1746245440228,-985.77,0.00019578,2]
[359678721,1746245440237,-450.0,0.00019578,2]
[359678722,1746245440246,-450.0,0.00019578,2]
[359678723,1746245440256,-450.0,0.00019578,2]
[359678724,1746245440265,-450.0,0.00019578,2]
[359678725,1746245440274,-1555.07,0.00019578,2]
[359678726,1746245440283,-846.333231,0.00019578,2]
[359678727,1746245440292,-450.0,0.00019578,2]
[359678728,1746245440301,-450.0,0.00019578,2]
[359678729,1746245440310,-617.722084,0.00019578,2]
[359678730,1746245440319,-500.0,0.00019578,2]
[359678731,1746245440328,-500.0,0.00019578,2]
[359678732,1746245440337,-500.0,0.00019578,2]
[359678733,1746245440346,-500.0,0.00019578,2]
[359678734,1746245440355,-216.98531292,0.00019578,2]
[359678735,1746245440366,-66813.67098966,0.00019578,2]
[359678736,1746245440375,-200.0,0.00019578,2]
[359678737,1746245440384,-1000.0,0.00019579,2]
[359678738,1746245440393,-1000.0,0.00019579,2]
[359678739,1746245440403,-1000.0,0.00019579,2]
[359678740,1746245440412,-1000.0,0.00019579,2]
[359678741,1746245440421,-1000.0,0.00019579,2]
[359678742,1746245440430,-1000.0,0.00019579,2]
[359678743,1746245440440,-1000.0,0.00019579,2]
[359678744,1746245440448,-1000.0,0.00019579,2]
[359678745,1746245440457,-1000.0,0.00019579,2]
[359678746,1746245440470,-1000.0,0.00019579,2]
[359678747,1746245440479,-1000.0,0.00019579,2]
[359678748,1746245440488,-1000.0,0.00019579,2]
[359678749,1746245440498,-1000.0,0.00019579,2]
[359678750,1746245440508,-1000.0,0.00019579,2]
[359678751,1746245440517,-1000.0,0.00019579,2]
[359678752,1746245440527,-1000.0,0.00019579,2]
[359678753,1746245440538,-1000.0,0.00019579,2]
[359678754,1746245440547,-1000.0,0.00019579,2]
[359678755,1746245440557,-1000.0,0.00019579,2]
[359678756,1746245440566,-1000.0,0.00019579,2]
[359678757,1746245440577,-1000.0,0.00019579,2]
[359678758,1746245440586,-1000.0,0.00019579,2]
[359678759,1746245440595,-1000.0,0.00019579,2]
[359678760,1746245440606,-1000.0,0.00019579,2]
[359678761,1746245440615,-1000.0,0.00019579,2]
[359678762,1746245440625,-1000.0,0.00019579,2]
[359678763,1746245440636,-1000.0,0.00019579,2]
[359678764,1746245440645,-1000.0,0.00019579,2]
[359678765,1746245440655,-1000.0,0.00019579,2]
[359678766,1746245440664,-1000.0,0.00019579,2]
[359678767,1746245440673,-1000.0,0.00019579,2]
[359678768,1746245440682,-1000.0,0.00019579,2]
[359678769,1746245440691,-1000.0,0.00019579,2]
[359678770,1746245440701,-1000.0,0.00019579,2]
[359678771,1746245440710,-1000.0,0.00019579,2]
[359678772,1746245440719,-1000.0,0.00019579,2]
[359678773,1746245440728,-1000.0,0.00019579,2]
[359678774,1746245440737,-1000.0,0.00019579,2]
[359678775,1746245440746,-1000.0,0.00019579,2]
[359678776,1746245440761,-1000.0,0.00019579,2]
[359678777,1746245440771,-1000.0,0.00019579,2]
[359678778,1746245440781,-1000.0,0.00019579,2]
[359678779,1746245440790,-1000.0,0.00019579,2]
[359678780,1746245440799,-1000.0,0.00019579,2]
[359678781,1746245440810,-1000.0,0.00019579,2]
[359678782,1746245440821,-1000.0,0.00019579,2]
[359678783,1746245440831,-1000.0,0.00019579,2]
[359678784,1746245440840,-1000.0,0.00019579,2]
[359678785,1746245440849,-1000.0,0.00019579,2]
[359678786,1746245440858,-1000.0,0.00019579,2]
[359678787,1746245440867,-1000.0,0.00019579,2]
[359678788,1746245441076,-1000.0,0.00019579,2]
[359678789,1746245441086,-1000.0,0.00019579,2]
[359678790,1746245441095,-1000.0,0.00019579,2]
[359678791,1746245441105,-1000.0,0.00019579,2]
[359678792,1746245441114,-1000.0,0.00019579,2]
[359678793,1746245441124,-1000.0,0.00019579,2]
[359678794,1746245441133,-1000.0,0.00019579,2]
[359678795,1746245441142,-1000.0,0.00019579,2]
[359678796,1746245441151,-1000.0,0.00019579,2]
[359678797,1746245441161,-1000.0,0.00019579,2]
[359678798,1746245441170,-1000.0,0.00019579,2]
[359678799,1746245441179,-1000.0,0.00019579,2]
[359678800,1746245441188,-1000.0,0.00019579,2]
[359678801,1746245441197,-1000.0,0.00019579,2]
[359678802,1746245441207,-1000.0,0.00019579,2]
[359678803,1746245441216,-1000.0,0.00019579,2]
[359678804,1746245441225,-1000.0,0.00019579,2]
[359678805,1746245441234,-1000.0,0.00019579,2]
[359678806,1746245441243,-1000.0,0.00019579,2]
[359678807,1746245441252,-1000.0,0.00019579,2]
[359678808,1746245441262,-1000.0,0.00019579,2]
[359678809,1746245441271,-1000.0,0.00019579,2]
[359678810,1746245441280,-1000.0,0.00019579,2]
[359678811,1746245441289,-1000.0,0.00019579,2]
[359678812,1746245441298,-1000.0,0.00019579,2]
[359678813,1746245441308,-1000.0,0.00019579,2]
[359678814,1746245441321,-1000.0,0.00019579,2]
[359678815,1746245441330,-1000.0,0.00019579,2]
[359678816,1746245441339,-1000.0,0.00019579,2]
[359678817,1746245441349,-1000.0,0.00019579,2]
[359678818,1746245441358,-1000.0,0.00019579,2]
[359678819,1746245441367,-1000.0,0.00019579,2]
[359678820,1746245441377,-1000.0,0.00019579,2]
[359678821,1746245441386,-1000.0,0.00019579,2]
[359678822,1746245441395,-1000.0,0.00019579,2]
[359678823,1746245441405,-1000.0,0.00019579,2]
[359678824,1746245441414,-1057.0,0.00019579,2]
[359678825,1746245441423,-450.0,0.00019579,2]
[359678826,1746245441433,-450.0,0.00019579,2]
[359678827,1746245441442,-450.0,0.00019579,2]
[359678828,1746245441451,-450.0,0.00019579,2]
[359678829,1746245441463,-450.0,0.00019579,2]
[359678830,1746245441472,-506.0,0.00019579,2]
[359678831,1746245441481,-450.0,0.00019579,2]
[359678832,1746245441490,-450.0,0.00019579,2]
[359678833,1746245441499,-450.0,0.00019579,2]
[359678834,1746245441509,-450.0,0.00019579,2]
[359678835,1746245441520,-450.0,0.00019579,2]
[359678836,1746245441530,-450.0,0.00019579,2]
[359678837,1746245441540,-450.0,0.00019579,2]
[359678838,1746245441551,-450.0,0.00019579,2]
[359678839,1746245441560,-450.0,0.00019579,2]
[359678840,1746245441570,-450.0,0.00019579,2]
[359678841,1746245441579,-813.27,0.00019579,2]
[359678842,1746245441590,-450.0,0.00019579,2]